[Event "Titled Tuesday Blitz May 9 Early 2023"]
[White "Gatterer, Florian"]
[Black "Smith, Shreyas"]
[WhiteFideId "811688"]
[BlackFideId "7400713"]
[WhiteElo "2221"]
[BlackElo "2151"]
[Result "0-1"]
[Round "10"]
[TimeControl "180+2"]
[Date "2023.05.09"]
[WhiteClock "0:00:00"]
[BlackClock "0:00:13"]

1. c4 {[%clk 0:03:00]}  e6 {[%clk 0:02:58]} 2. g3 {[%clk 0:03:00]}  d5 {[%clk 0:02:59]} 3. Bg2 {[%clk 0:03:01]}  Nf6 {[%clk 0:02:56]} 4. Nf3 {[%clk 0:03:01]}  a6 {[%clk 0:02:43]} 5. b3 {[%clk 0:02:57]}  dxc4 {[%clk 0:02:39]} 6. bxc4 {[%clk 0:02:56]}  Bd6 {[%clk 0:02:39]} 7. O-O {[%clk 0:02:51]}  e5 {[%clk 0:02:35]} 8. d3 {[%clk 0:02:50]}  O-O {[%clk 0:02:33]} 9. Bb2 {[%clk 0:02:48]}  Nc6 {[%clk 0:02:32]} 10. h3 {[%clk 0:02:42]}  Re8 {[%clk 0:02:31]} 11. e4 {[%clk 0:02:40]}  Qe7 {[%clk 0:02:26]} 12. Nc3 {[%clk 0:02:39]}  h6 {[%clk 0:02:14]} 13. Kh2 {[%clk 0:02:38]}  Ba3 {[%clk 0:02:11]} 14. Bxa3 {[%clk 0:02:34]}  Qxa3 {[%clk 0:02:12]} 15. Nd5 {[%clk 0:02:34]}  Nxd5 {[%clk 0:02:09]} 16. cxd5 {[%clk 0:02:34]}  Nb8 {[%clk 0:02:07]} 17. Qc2 {[%clk 0:02:12]}  c6 {[%clk 0:02:06]} 18. dxc6 {[%clk 0:01:58]}  Nxc6 {[%clk 0:02:07]} 19. Rab1 {[%clk 0:01:58]}  Qe7 {[%clk 0:01:59]} 20. Qb2 {[%clk 0:01:51]}  b5 {[%clk 0:01:55]} 21. Rfc1 {[%clk 0:01:45]}  Bb7 {[%clk 0:01:54]} 22. a4 {[%clk 0:01:34]}  b4 {[%clk 0:01:49]} 23. a5 {[%clk 0:01:33]}  Rad8 {[%clk 0:01:45]} 24. Bf1 {[%clk 0:01:28]}  Qf6 {[%clk 0:01:42]} 25. Kg2 {[%clk 0:01:23]}  Bc8 {[%clk 0:01:38]} 26. Be2 {[%clk 0:01:09]}  Qe6 {[%clk 0:01:28]} 27. h4 {[%clk 0:01:05]}  Rd6 {[%clk 0:01:18]} 28. Rc5 {[%clk 0:01:03]}  Qe7 {[%clk 0:00:56]} 29. Rbc1 {[%clk 0:01:01]}  Bd7 {[%clk 0:00:54]} 30. Kg1 {[%clk 0:00:55]}  g5 {[%clk 0:00:49]} 31. hxg5 {[%clk 0:00:54]}  hxg5 {[%clk 0:00:50]} 32. Kg2 {[%clk 0:00:54]}  Rh6 {[%clk 0:00:44]} 33. Qa1 {[%clk 0:00:36]}  Kg7 {[%clk 0:00:34]} 34. R5c4 {[%clk 0:00:34]}  Reh8 {[%clk 0:00:31]} 35. Rg1 {[%clk 0:00:31]}  Bh3+ {[%clk 0:00:29]} 36. Kh2 {[%clk 0:00:31]}  Bf1+ {[%clk 0:00:27]} 37. Nh4 {[%clk 0:00:19]}  Bxe2 {[%clk 0:00:26]} 38. Rxc6 {[%clk 0:00:14]}  Rxc6 {[%clk 0:00:25]} 39. Qe1 {[%clk 0:00:08]}  Bg4 {[%clk 0:00:23]} 40. Qe3 {[%clk 0:00:04]}  gxh4 {[%clk 0:00:21]} 41. Kg2 {[%clk 0:00:04]}  h3+ {[%clk 0:00:17]} 42. Kf1 {[%clk 0:00:03]}  h2 {[%clk 0:00:15]} 43. Rh1 {[%clk 0:00:02]}  Qf6 {[%clk 0:00:14]} 44. f4 {[%clk 0:00:00]}  Qh6 {[%clk 0:00:13]} 0-1


[Site "https://www.chess.com"]

[Event "Titled Tuesday Blitz May 9 Early 2023"]
[White "Marcziter, Dmitrii"]
[Black "Kirillov, Dmitry"]
[WhiteFideId "13900765"]
[BlackFideId "34180572"]
[WhiteElo "2162"]
[BlackElo "2161"]
[Result "0-1"]
[Round "10"]
[TimeControl "180+2"]
[Date "2023.05.09"]
[WhiteClock "0:00:00"]
[BlackClock "0:00:15"]

1. d4 {[%clk 0:02:54]}  d5 {[%clk 0:02:58]} 2. c4 {[%clk 0:02:52]}  e6 {[%clk 0:02:59]} 3. Nf3 {[%clk 0:02:50]}  Nf6 {[%clk 0:02:58]} 4. Bg5 {[%clk 0:02:49]}  Bb4+ {[%clk 0:02:51]} 5. Nc3 {[%clk 0:02:47]}  h6 {[%clk 0:02:49]} 6. Bxf6 {[%clk 0:02:46]}  Qxf6 {[%clk 0:02:50]} 7. e3 {[%clk 0:02:46]}  c6 {[%clk 0:02:49]} 8. Nd2 {[%clk 0:02:43]}  O-O {[%clk 0:02:42]} 9. Qb3 {[%clk 0:02:40]}  Bd6 {[%clk 0:02:38]} 10. Nf3 {[%clk 0:02:37]}  Nd7 {[%clk 0:02:37]} 11. cxd5 {[%clk 0:02:33]}  exd5 {[%clk 0:02:36]} 12. Bd3 {[%clk 0:02:32]}  Qe7 {[%clk 0:02:36]} 13. O-O {[%clk 0:02:31]}  Nf6 {[%clk 0:02:37]} 14. h3 {[%clk 0:02:30]}  Ne4 {[%clk 0:02:35]} 15. Bxe4 {[%clk 0:02:23]}  dxe4 {[%clk 0:02:35]} 16. Nd2 {[%clk 0:02:23]}  Be6 {[%clk 0:02:33]} 17. Qc2 {[%clk 0:02:22]}  f5 {[%clk 0:02:32]} 18. Rae1 {[%clk 0:02:15]}  Rad8 {[%clk 0:02:26]} 19. f3 {[%clk 0:02:12]}  Bg3 {[%clk 0:02:24]} 20. Re2 {[%clk 0:02:08]}  exf3 {[%clk 0:02:11]} 21. Rxf3 {[%clk 0:02:06]}  Bb8 {[%clk 0:02:10]} 22. Nf1 {[%clk 0:01:58]}  Qg5 {[%clk 0:01:59]} 23. b3 {[%clk 0:01:49]}  Rde8 {[%clk 0:01:53]} 24. Ref2 {[%clk 0:01:40]}  b5 {[%clk 0:01:51]} 25. e4 {[%clk 0:01:31]}  f4 {[%clk 0:01:34]} 26. Qd2 {[%clk 0:01:13]}  b4 {[%clk 0:01:30]} 27. Na4 {[%clk 0:01:09]}  Qb5 {[%clk 0:01:05]} 28. Nc5 {[%clk 0:01:03]}  Bc8 {[%clk 0:01:00]} 29. Nd3 {[%clk 0:00:57]}  g5 {[%clk 0:00:58]} 30. e5 {[%clk 0:00:51]}  a5 {[%clk 0:00:55]} 31. Qc2 {[%clk 0:00:48]}  Bf5 {[%clk 0:00:29]} 32. Qd2 {[%clk 0:00:32]}  Ba7 {[%clk 0:00:27]} 33. Nb2 {[%clk 0:00:21]}  Qd5 {[%clk 0:00:27]} 34. Rd3 {[%clk 0:00:18]}  Bxd3 {[%clk 0:00:20]} 35. Qxd3 {[%clk 0:00:17]}  Kg7 {[%clk 0:00:19]} 36. Rd2 {[%clk 0:00:13]}  Rxe5 {[%clk 0:00:19]} 37. Kh2 {[%clk 0:00:10]}  Re6 {[%clk 0:00:17]} 38. Nc4 {[%clk 0:00:09]}  Rd8 {[%clk 0:00:16]} 39. Re2 {[%clk 0:00:00]}  Bxd4 {[%clk 0:00:15]} 0-1


[Site "https://www.chess.com"]

[Event "Titled Tuesday Blitz May 9 Early 2023"]
[White "Vaglio Munoz, Jaime"]
[Black "Begunov, Konstantin"]
[WhiteFideId "6500145"]
[BlackFideId "4118510"]
[WhiteElo "2199"]
[BlackElo "2050"]
[Result "0-1"]
[Round "10"]
[TimeControl "180+2"]
[Date "2023.05.09"]
[WhiteClock "0:00:24"]
[BlackClock "0:00:19"]

1. e4 {[%clk 0:03:00]}  c5 {[%clk 0:02:56]} 2. a3 {[%clk 0:02:59]}  d5 {[%clk 0:02:55]} 3. exd5 {[%clk 0:02:58]}  Qxd5 {[%clk 0:02:56]} 4. Qf3 {[%clk 0:02:57]}  Nf6 {[%clk 0:02:52]} 5. Nc3 {[%clk 0:02:54]}  Qxf3 {[%clk 0:02:52]} 6. Nxf3 {[%clk 0:02:55]}  a6 {[%clk 0:02:48]} 7. Ne5 {[%clk 0:02:46]}  Nbd7 {[%clk 0:02:45]} 8. Nc4 {[%clk 0:02:35]}  b5 {[%clk 0:02:40]} 9. Na5 {[%clk 0:02:34]}  Nb6 {[%clk 0:02:17]} 10. a4 {[%clk 0:02:32]}  b4 {[%clk 0:02:12]} 11. Nd1 {[%clk 0:02:31]}  Bf5 {[%clk 0:02:06]} 12. Ne3 {[%clk 0:02:28]}  Bg6 {[%clk 0:02:01]} 13. b3 {[%clk 0:02:27]}  e6 {[%clk 0:01:59]} 14. Bb2 {[%clk 0:02:26]}  Nfd5 {[%clk 0:01:56]} 15. O-O-O {[%clk 0:02:20]}  f6 {[%clk 0:01:52]} 16. h4 {[%clk 0:02:19]}  h5 {[%clk 0:01:47]} 17. g3 {[%clk 0:02:10]}  Be7 {[%clk 0:01:38]} 18. Bg2 {[%clk 0:02:09]}  Rc8 {[%clk 0:01:37]} 19. Rhe1 {[%clk 0:02:09]}  Kf7 {[%clk 0:01:36]} 20. d3 {[%clk 0:02:07]}  Rhd8 {[%clk 0:01:20]} 21. f4 {[%clk 0:02:06]}  Nxe3 {[%clk 0:01:14]} 22. Rxe3 {[%clk 0:02:05]}  Bf5 {[%clk 0:01:15]} 23. Rde1 {[%clk 0:02:03]}  Rd7 {[%clk 0:01:12]} 24. Bf3 {[%clk 0:01:50]}  g6 {[%clk 0:01:10]} 25. Bb7 {[%clk 0:01:27]}  Rb8 {[%clk 0:01:00]} 26. Bc6 {[%clk 0:01:25]}  Rd6 {[%clk 0:00:56]} 27. Be4 {[%clk 0:01:23]}  Bxe4 {[%clk 0:00:49]} 28. Rxe4 {[%clk 0:01:22]}  Bd8 {[%clk 0:00:47]} 29. Nc4 {[%clk 0:01:18]}  Nxc4 {[%clk 0:00:46]} 30. Rxc4 {[%clk 0:01:19]}  Rc8 {[%clk 0:00:41]} 31. d4 {[%clk 0:01:16]}  Rdc6 {[%clk 0:00:38]} 32. dxc5 {[%clk 0:00:55]}  Rxc5 {[%clk 0:00:38]} 33. Rxc5 {[%clk 0:00:54]}  Rxc5 {[%clk 0:00:39]} 34. Kd2 {[%clk 0:00:52]}  f5 {[%clk 0:00:33]} 35. Re5 {[%clk 0:00:45]}  Bb6 {[%clk 0:00:24]} 36. Kd3 {[%clk 0:00:41]}  Rxe5 {[%clk 0:00:23]} 37. Bxe5 {[%clk 0:00:39]}  Bf2 {[%clk 0:00:23]} 38. Bd6 {[%clk 0:00:39]}  Bxg3 {[%clk 0:00:23]} 39. Kc4 {[%clk 0:00:37]}  Bxh4 {[%clk 0:00:22]} 40. Bxb4 {[%clk 0:00:33]}  Bf2 {[%clk 0:00:20]} 41. Kd3 {[%clk 0:00:26]}  h4 {[%clk 0:00:20]} 42. Ke2 {[%clk 0:00:26]}  Bb6 {[%clk 0:00:17]} 43. Kf3 {[%clk 0:00:25]}  Bc7 {[%clk 0:00:14]} 44. Bc3 {[%clk 0:00:25]}  e5 {[%clk 0:00:13]} 45. fxe5 {[%clk 0:00:23]}  g5 {[%clk 0:00:12]} 46. b4 {[%clk 0:00:23]}  Ke6 {[%clk 0:00:13]} 47. b5 {[%clk 0:00:22]}  axb5 {[%clk 0:00:14]} 48. axb5 {[%clk 0:00:22]}  g4+ {[%clk 0:00:14]} 49. Kf4 {[%clk 0:00:21]}  h3 {[%clk 0:00:14]} 50. b6 {[%clk 0:00:19]}  Bxb6 {[%clk 0:00:14]} 51. Kg3 {[%clk 0:00:20]}  Bc7 {[%clk 0:00:14]} 52. Kh4 {[%clk 0:00:19]}  Bxe5 {[%clk 0:00:15]} 53. Be1 {[%clk 0:00:18]}  Kd5 {[%clk 0:00:14]} 54. c4+ {[%clk 0:00:19]}  Kxc4 {[%clk 0:00:15]} 55. Kg5 {[%clk 0:00:20]}  Kd5 {[%clk 0:00:15]} 56. Kxf5 {[%clk 0:00:19]}  g3 {[%clk 0:00:16]} 57. Bxg3 {[%clk 0:00:19]}  Bxg3 {[%clk 0:00:15]} 58. Kg4 {[%clk 0:00:20]}  h2 {[%clk 0:00:16]} 59. Kxg3 {[%clk 0:00:21]}  h1=Q {[%clk 0:00:17]} 60. Kg4 {[%clk 0:00:21]}  Qe4+ {[%clk 0:00:18]} 61. Kg3 {[%clk 0:00:21]}  Qf5 {[%clk 0:00:18]} 62. Kh4 {[%clk 0:00:21]}  Ke4 {[%clk 0:00:19]} 63. Kg3 {[%clk 0:00:22]}  Ke3 {[%clk 0:00:18]} 64. Kg2 {[%clk 0:00:23]}  Ke2 {[%clk 0:00:18]} 65. Kg3 {[%clk 0:00:24]}  Qg5+ {[%clk 0:00:18]} 66. Kh3 {[%clk 0:00:23]}  Kf2 {[%clk 0:00:19]} 67. Kh2 {[%clk 0:00:24]}  Qh5# {[%clk 0:00:19]} 0-1


[Site "https://www.chess.com"]

[Event "Titled Tuesday Blitz May 9 Early 2023"]
[White "Qiao, Cindy"]
[Black "Jiganchine, Roman"]
[WhiteFideId "2620243"]
[BlackFideId "2603667"]
[WhiteElo "1777"]
[BlackElo "2266"]
[Result "1/2-1/2"]
[Round "10"]
[TimeControl "180+2"]
[Date "2023.05.09"]
[WhiteClock "0:00:38"]
[BlackClock "0:00:08"]

1. d4 {[%clk 0:02:58]}  d5 {[%clk 0:02:59]} 2. Bf4 {[%clk 0:02:57]}  c5 {[%clk 0:02:58]} 3. e3 {[%clk 0:02:57]}  e6 {[%clk 0:02:57]} 4. c3 {[%clk 0:02:57]}  Nc6 {[%clk 0:02:56]} 5. Nf3 {[%clk 0:02:57]}  Nf6 {[%clk 0:02:56]} 6. Bd3 {[%clk 0:02:57]}  Bd6 {[%clk 0:02:55]} 7. Bg3 {[%clk 0:02:58]}  O-O {[%clk 0:02:54]} 8. Nbd2 {[%clk 0:02:57]}  Qe7 {[%clk 0:02:54]} 9. O-O {[%clk 0:02:53]}  e5 {[%clk 0:02:53]} 10. dxe5 {[%clk 0:02:53]}  Nxe5 {[%clk 0:02:53]} 11. Nxe5 {[%clk 0:02:54]}  Bxe5 {[%clk 0:02:53]} 12. Nf3 {[%clk 0:02:54]}  Bxg3 {[%clk 0:02:49]} 13. hxg3 {[%clk 0:02:55]}  Bg4 {[%clk 0:02:49]} 14. Be2 {[%clk 0:02:55]}  Rad8 {[%clk 0:02:45]} 15. Nd2 {[%clk 0:02:55]}  Bxe2 {[%clk 0:02:36]} 16. Qxe2 {[%clk 0:02:56]}  d4 {[%clk 0:02:28]} 17. cxd4 {[%clk 0:02:54]}  cxd4 {[%clk 0:02:27]} 18. e4 {[%clk 0:02:52]}  d3 {[%clk 0:02:19]} 19. Qf3 {[%clk 0:02:49]}  Qb4 {[%clk 0:02:09]} 20. Rfd1 {[%clk 0:02:32]}  Rfe8 {[%clk 0:02:03]} 21. Nb3 {[%clk 0:02:26]}  Qxe4 {[%clk 0:01:41]} 22. Nc5 {[%clk 0:02:25]}  Qxf3 {[%clk 0:01:31]} 23. gxf3 {[%clk 0:02:26]}  d2 {[%clk 0:01:24]} 24. Nxb7 {[%clk 0:02:26]}  Rb8 {[%clk 0:01:13]} 25. Nc5 {[%clk 0:02:22]}  Rxb2 {[%clk 0:01:08]} 26. Nb3 {[%clk 0:02:22]}  Re1+ {[%clk 0:00:38]} 27. Rxe1 {[%clk 0:02:07]}  dxe1=Q+ {[%clk 0:00:39]} 28. Rxe1 {[%clk 0:02:06]}  Rxa2 {[%clk 0:00:39]} 29. Nc5 {[%clk 0:01:40]}  h5 {[%clk 0:00:38]} 30. Rb1 {[%clk 0:01:31]}  a5 {[%clk 0:00:32]} 31. Rb8+ {[%clk 0:01:30]}  Kh7 {[%clk 0:00:31]} 32. Ra8 {[%clk 0:01:31]}  Nd5 {[%clk 0:00:28]} 33. Ra7 {[%clk 0:01:26]}  f6 {[%clk 0:00:26]} 34. Ne6 {[%clk 0:01:26]}  a4 {[%clk 0:00:21]} 35. Rxg7+ {[%clk 0:01:26]}  Kh8 {[%clk 0:00:21]} 36. Ra7 {[%clk 0:01:27]}  a3 {[%clk 0:00:20]} 37. Nd4 {[%clk 0:01:22]}  Ra1+ {[%clk 0:00:20]} 38. Kg2 {[%clk 0:01:23]}  Nc3 {[%clk 0:00:19]} 39. Nb3 {[%clk 0:01:19]}  Ra2 {[%clk 0:00:18]} 40. Nc5 {[%clk 0:01:16]}  Ra1 {[%clk 0:00:17]} 41. Nb3 {[%clk 0:01:16]}  Ra2 {[%clk 0:00:17]} 42. Nc5 {[%clk 0:01:10]}  Ra1 {[%clk 0:00:17]} 43. Ne4 {[%clk 0:01:11]}  Nd5 {[%clk 0:00:13]} 44. Ra5 {[%clk 0:01:03]}  a2 {[%clk 0:00:12]} 45. Nd2 {[%clk 0:00:59]}  Nc3 {[%clk 0:00:09]} 46. Ne4 {[%clk 0:00:55]}  Rc1 {[%clk 0:00:08]} 47. Nxc3 {[%clk 0:00:48]}  a1=Q {[%clk 0:00:07]} 48. Rxa1 {[%clk 0:00:48]}  Rxa1 {[%clk 0:00:08]} 49. Ne4 {[%clk 0:00:49]}  Kg7 {[%clk 0:00:07]} 50. Nd6 {[%clk 0:00:48]}  Ra8 {[%clk 0:00:08]} 51. Nf5+ {[%clk 0:00:48]}  Kg6 {[%clk 0:00:08]} 52. Ne7+ {[%clk 0:00:48]}  Kg7 {[%clk 0:00:08]} 53. Nf5+ {[%clk 0:00:48]}  Kg6 {[%clk 0:00:09]} 54. Ne7+ {[%clk 0:00:49]}  Kg7 {[%clk 0:00:09]} 55. Nd5 {[%clk 0:00:49]}  Kg6 {[%clk 0:00:09]} 56. Nf4+ {[%clk 0:00:49]}  Kh6 {[%clk 0:00:09]} 57. Kh3 {[%clk 0:00:48]}  Ra5 {[%clk 0:00:08]} 58. Ne6 {[%clk 0:00:46]}  Kg6 {[%clk 0:00:08]} 59. Kg2 {[%clk 0:00:45]}  Ra4 {[%clk 0:00:08]} 60. Nf4+ {[%clk 0:00:43]}  Kh6 {[%clk 0:00:07]} 61. Kh3 {[%clk 0:00:43]}  Rxf4 {[%clk 0:00:07]} 62. gxf4 {[%clk 0:00:43]}  Kg6 {[%clk 0:00:07]} 63. Kh4 {[%clk 0:00:38]}  Kf5 {[%clk 0:00:08]} 64. Kxh5 {[%clk 0:00:38]}  Kxf4 {[%clk 0:00:08]} 65. Kg6 {[%clk 0:00:37]}  f5 {[%clk 0:00:08]} 66. Kf6 {[%clk 0:00:37]}  Kxf3 {[%clk 0:00:08]} 67. Kxf5 {[%clk 0:00:38]}  Kxf2 {[%clk 0:00:08]} 1/2-1/2


[Site "https://www.chess.com"]

[Event "Titled Tuesday Blitz May 9 Early 2023"]
[White "Sargissyan, Sargis"]
[Black "Kuchava, Ana"]
[WhiteFideId "13303210"]
[BlackFideId "13605348"]
[WhiteElo "2109"]
[BlackElo "2001"]
[Result "1-0"]
[Round "10"]
[TimeControl "180+2"]
[Date "2023.05.09"]
[WhiteClock "0:00:27"]
[BlackClock "0:00:00"]

1. e4 {[%clk 0:03:00]}  c5 {[%clk 0:02:54]} 2. Nc3 {[%clk 0:02:59]}  Nc6 {[%clk 0:02:54]} 3. Bb5 {[%clk 0:02:59]}  Nd4 {[%clk 0:02:53]} 4. Bc4 {[%clk 0:02:59]}  e6 {[%clk 0:02:52]} 5. Nge2 {[%clk 0:02:59]}  a6 {[%clk 0:02:51]} 6. Nxd4 {[%clk 0:02:59]}  cxd4 {[%clk 0:02:51]} 7. Ne2 {[%clk 0:03:00]}  b5 {[%clk 0:02:50]} 8. Bb3 {[%clk 0:02:59]}  Qb6 {[%clk 0:02:49]} 9. d3 {[%clk 0:02:59]}  Bb7 {[%clk 0:02:42]} 10. O-O {[%clk 0:02:59]}  Nf6 {[%clk 0:02:41]} 11. c3 {[%clk 0:02:56]}  dxc3 {[%clk 0:02:38]} 12. bxc3 {[%clk 0:02:57]}  d5 {[%clk 0:02:20]} 13. e5 {[%clk 0:02:42]}  Nd7 {[%clk 0:02:20]} 14. Be3 {[%clk 0:02:43]}  Qc7 {[%clk 0:02:07]} 15. f4 {[%clk 0:02:42]}  Be7 {[%clk 0:02:00]} 16. f5 {[%clk 0:02:35]}  Nxe5 {[%clk 0:01:46]} 17. fxe6 {[%clk 0:02:35]}  fxe6 {[%clk 0:01:45]} 18. Nd4 {[%clk 0:02:31]}  Qd7 {[%clk 0:01:38]} 19. Qh5+ {[%clk 0:02:07]}  Ng6 {[%clk 0:01:37]} 20. Qh3 {[%clk 0:02:07]}  e5 {[%clk 0:00:56]} 21. Ne6 {[%clk 0:01:46]}  Bf6 {[%clk 0:00:52]} 22. Nxg7+ {[%clk 0:01:28]}  Qxg7 {[%clk 0:00:30]} 23. Qe6+ {[%clk 0:01:28]}  Be7 {[%clk 0:00:30]} 24. Bxd5 {[%clk 0:00:41]}  Bxd5 {[%clk 0:00:29]} 25. Qxd5 {[%clk 0:00:41]}  Rc8 {[%clk 0:00:20]} 26. Qb7 {[%clk 0:00:36]}  Rxc3 {[%clk 0:00:15]} 27. Qa8+ {[%clk 0:00:34]}  Kd7 {[%clk 0:00:14]} 28. Qd5+ {[%clk 0:00:30]}  Kc7 {[%clk 0:00:10]} 29. Rf7 {[%clk 0:00:29]}  Qg8 {[%clk 0:00:05]} 30. Rxe7+ {[%clk 0:00:28]}  Nxe7 {[%clk 0:00:05]} 31. Qxe5+ {[%clk 0:00:29]}  Kb7 {[%clk 0:00:04]} 32. Qxc3 {[%clk 0:00:30]}  Nc6 {[%clk 0:00:04]} 33. Rf1 {[%clk 0:00:28]}  Qe6 {[%clk 0:00:04]} 34. Qxh8 {[%clk 0:00:27]}  Qxe3+ {[%clk 0:00:03]} 35. Kh1 {[%clk 0:00:27]}  Qe2 {[%clk 0:00:04]} 36. Qxh7+ {[%clk 0:00:27]}  Kb6 {[%clk 0:00:04]} 37. Qf5 {[%clk 0:00:27]}  Nd4 {[%clk 0:00:03]} 38. Qf6+ {[%clk 0:00:27]}  Nc6 {[%clk 0:00:00]} 39. Rc1 {[%clk 0:00:27]} 1-0


[Site "https://www.chess.com"]

[Event "Titled Tuesday Blitz May 9 Early 2023"]
[White "Feinig, Mario"]
[Black "Samaganova, Aleksandra"]
[WhiteFideId "1618113"]
[BlackFideId "13800221"]
[WhiteElo "2163"]
[BlackElo "1858"]
[Result "1-0"]
[Round "10"]
[TimeControl "180+2"]
[Date "2023.05.09"]
[WhiteClock "0:00:14"]
[BlackClock "0:00:00"]

1. e4 {[%clk 0:03:00]}  c5 {[%clk 0:02:56]} 2. Nc3 {[%clk 0:02:59]}  e6 {[%clk 0:02:56]} 3. g3 {[%clk 0:02:53]}  Nc6 {[%clk 0:02:46]} 4. Bg2 {[%clk 0:02:52]}  g6 {[%clk 0:02:45]} 5. d3 {[%clk 0:02:52]}  Bg7 {[%clk 0:02:45]} 6. Be3 {[%clk 0:02:51]}  Nd4 {[%clk 0:02:43]} 7. Nce2 {[%clk 0:02:47]}  d6 {[%clk 0:02:32]} 8. c3 {[%clk 0:02:41]}  Nxe2 {[%clk 0:02:31]} 9. Nxe2 {[%clk 0:02:41]}  Ne7 {[%clk 0:02:30]} 10. Qd2 {[%clk 0:02:39]}  h6 {[%clk 0:02:22]} 11. h4 {[%clk 0:02:16]}  b6 {[%clk 0:02:05]} 12. h5 {[%clk 0:01:57]}  g5 {[%clk 0:02:01]} 13. f4 {[%clk 0:01:57]}  gxf4 {[%clk 0:01:51]} 14. gxf4 {[%clk 0:01:56]}  d5 {[%clk 0:01:36]} 15. O-O-O {[%clk 0:01:50]}  d4 {[%clk 0:01:31]} 16. cxd4 {[%clk 0:01:39]}  cxd4 {[%clk 0:01:29]} 17. Bf2 {[%clk 0:01:39]}  Bb7 {[%clk 0:01:09]} 18. Kb1 {[%clk 0:01:39]}  Rc8 {[%clk 0:01:06]} 19. Rhg1 {[%clk 0:01:30]}  Nc6 {[%clk 0:00:36]} 20. Bh3 {[%clk 0:01:16]}  Bf6 {[%clk 0:00:34]} 21. e5 {[%clk 0:01:12]}  Bh4 {[%clk 0:00:33]} 22. Ng3 {[%clk 0:01:09]}  Bxg3 {[%clk 0:00:25]} 23. Bxg3 {[%clk 0:01:10]}  Ne7 {[%clk 0:00:20]} 24. Bh4 {[%clk 0:01:08]}  Kd7 {[%clk 0:00:17]} 25. Qb4 {[%clk 0:00:58]}  Rc6 {[%clk 0:00:05]} 26. Rg7 {[%clk 0:00:43]}  Rf8 {[%clk 0:00:05]} 27. f5 {[%clk 0:00:27]}  a5 {[%clk 0:00:03]} 28. fxe6+ {[%clk 0:00:25]}  Rxe6 {[%clk 0:00:03]} 29. Qd6+ {[%clk 0:00:17]}  Kc8 {[%clk 0:00:02]} 30. Bxe6+ {[%clk 0:00:17]}  fxe6 {[%clk 0:00:02]} 31. Bxe7 {[%clk 0:00:14]}  Qxd6 {[%clk 0:00:02]} 32. Bxd6 {[%clk 0:00:15]}  Rf2 {[%clk 0:00:02]} 33. Rc7+ {[%clk 0:00:14]}  Kd8 {[%clk 0:00:00]} 34. Rxb7 {[%clk 0:00:14]} 1-0


[Site "https://www.chess.com"]

[Event "Titled Tuesday Blitz May 9 Early 2023"]
[White "Hinds, Nathan"]
[Black "Srdanovic, Jovana"]
[WhiteFideId "7400730"]
[BlackFideId "954810"]
[WhiteElo "2001"]
[BlackElo "2169"]
[Result "1-0"]
[Round "10"]
[TimeControl "180+2"]
[Date "2023.05.09"]
[WhiteClock "0:01:04"]
[BlackClock "0:00:17"]

1. Nf3 {[%clk 0:03:00]}  d5 {[%clk 0:02:53]} 2. d4 {[%clk 0:03:00]}  Nf6 {[%clk 0:02:35]} 3. c4 {[%clk 0:03:00]}  c6 {[%clk 0:02:34]} 4. g3 {[%clk 0:03:00]}  Bg4 {[%clk 0:02:33]} 5. Bg2 {[%clk 0:02:59]}  Bxf3 {[%clk 0:02:34]} 6. Bxf3 {[%clk 0:02:59]}  e6 {[%clk 0:02:34]} 7. Nd2 {[%clk 0:02:55]}  Be7 {[%clk 0:02:35]} 8. O-O {[%clk 0:02:55]}  O-O {[%clk 0:02:36]} 9. b3 {[%clk 0:02:54]}  Nbd7 {[%clk 0:02:36]} 10. Bb2 {[%clk 0:02:54]}  Qc7 {[%clk 0:02:37]} 11. e4 {[%clk 0:02:54]}  dxe4 {[%clk 0:02:37]} 12. Nxe4 {[%clk 0:02:54]}  Nxe4 {[%clk 0:02:38]} 13. Bxe4 {[%clk 0:02:55]}  Nf6 {[%clk 0:02:38]} 14. Bf3 {[%clk 0:02:51]}  Rad8 {[%clk 0:02:39]} 15. Qe2 {[%clk 0:02:51]}  a5 {[%clk 0:02:37]} 16. Rac1 {[%clk 0:02:46]}  Qb8 {[%clk 0:02:35]} 17. Rfd1 {[%clk 0:02:46]}  Rd7 {[%clk 0:02:34]} 18. d5 {[%clk 0:02:21]}  exd5 {[%clk 0:02:25]} 19. cxd5 {[%clk 0:02:22]}  cxd5 {[%clk 0:02:11]} 20. Bxd5 {[%clk 0:02:14]}  Rxd5 {[%clk 0:01:37]} 21. Qxe7 {[%clk 0:02:07]}  Rxd1+ {[%clk 0:01:34]} 22. Rxd1 {[%clk 0:02:05]}  Ne8 {[%clk 0:00:59]} 23. Rd7 {[%clk 0:01:40]}  b5 {[%clk 0:00:37]} 24. Rd8 {[%clk 0:01:36]}  Qc7 {[%clk 0:00:19]} 25. Rxe8 {[%clk 0:01:21]}  Qxe7 {[%clk 0:00:19]} 26. Rxe7 {[%clk 0:01:22]}  Rc8 {[%clk 0:00:18]} 27. Ra7 {[%clk 0:01:08]}  a4 {[%clk 0:00:16]} 28. bxa4 {[%clk 0:01:07]}  bxa4 {[%clk 0:00:17]} 29. Rxa4 {[%clk 0:01:07]}  f6 {[%clk 0:00:17]} 30. Bd4 {[%clk 0:01:04]}  Rc1+ {[%clk 0:00:17]} 31. Kg2 {[%clk 0:01:04]} 1-0


[Site "https://www.chess.com"]

[Event "Titled Tuesday Blitz May 9 Early 2023"]
[White "Carrasco Miranda, Andres"]
[Black "Tarnowska, Aleksandra"]
[WhiteFideId "3405990"]
[BlackFideId "1180967"]
[WhiteElo "2183"]
[BlackElo "1776"]
[Result "1-0"]
[Round "10"]
[TimeControl "180+2"]
[Date "2023.05.09"]
[WhiteClock "0:00:52"]
[BlackClock "0:00:00"]

1. d4 {[%clk 0:02:55]}  d5 {[%clk 0:03:00]} 2. c4 {[%clk 0:02:55]}  e6 {[%clk 0:02:59]} 3. Nf3 {[%clk 0:02:56]}  Nf6 {[%clk 0:03:00]} 4. g3 {[%clk 0:02:56]}  Bb4+ {[%clk 0:03:00]} 5. Nbd2 {[%clk 0:02:56]}  Be7 {[%clk 0:03:01]} 6. Bg2 {[%clk 0:02:56]}  O-O {[%clk 0:03:01]} 7. O-O {[%clk 0:02:56]}  b6 {[%clk 0:03:02]} 8. cxd5 {[%clk 0:02:55]}  exd5 {[%clk 0:03:01]} 9. Ne5 {[%clk 0:02:55]}  Bb7 {[%clk 0:03:01]} 10. Ndf3 {[%clk 0:02:56]}  Nbd7 {[%clk 0:03:01]} 11. Bf4 {[%clk 0:02:56]}  Ne4 {[%clk 0:02:34]} 12. Rc1 {[%clk 0:02:53]}  Rc8 {[%clk 0:02:31]} 13. Nc6 {[%clk 0:02:52]}  Bxc6 {[%clk 0:02:29]} 14. Rxc6 {[%clk 0:02:53]}  Nb8 {[%clk 0:02:19]} 15. Rc1 {[%clk 0:02:48]}  c5 {[%clk 0:02:20]} 16. Qa4 {[%clk 0:02:47]}  a5 {[%clk 0:02:09]} 17. Rfd1 {[%clk 0:02:22]}  c4 {[%clk 0:02:01]} 18. b3 {[%clk 0:02:18]}  Qd7 {[%clk 0:01:41]} 19. Qxd7 {[%clk 0:01:58]}  Nxd7 {[%clk 0:01:41]} 20. bxc4 {[%clk 0:01:54]}  Rxc4 {[%clk 0:01:28]} 21. Ne5 {[%clk 0:01:43]}  Rxc1 {[%clk 0:01:18]} 22. Rxc1 {[%clk 0:01:41]}  Ndf6 {[%clk 0:00:51]} 23. e3 {[%clk 0:01:30]}  Ba3 {[%clk 0:00:44]} 24. Rc6 {[%clk 0:01:29]}  b5 {[%clk 0:00:38]} 25. Bf1 {[%clk 0:01:28]}  b4 {[%clk 0:00:20]} 26. h4 {[%clk 0:01:28]}  Nc3 {[%clk 0:00:19]} 27. Ra6 {[%clk 0:01:14]}  Nxa2 {[%clk 0:00:19]} 28. Rxa5 {[%clk 0:01:14]}  Nc3 {[%clk 0:00:17]} 29. Bd3 {[%clk 0:01:05]}  h6 {[%clk 0:00:12]} 30. g4 {[%clk 0:01:04]}  Nfe4 {[%clk 0:00:11]} 31. Nc6 {[%clk 0:00:54]}  Rc8 {[%clk 0:00:04]} 32. Ne7+ {[%clk 0:00:54]}  Kh7 {[%clk 0:00:02]} 33. Nxc8 {[%clk 0:00:55]}  Bb2 {[%clk 0:00:01]} 34. Rxd5 {[%clk 0:00:51]}  Nxd5 {[%clk 0:00:00]} 35. Bxe4+ {[%clk 0:00:52]} 1-0


[Site "https://www.chess.com"]